[Event "Titled Tuesday Blitz July 25 Late 2023"]
[White "Floresvillar Gonzalez, Luis Migu"]
[Black "SilverCityIndigo"]
[WhiteFideId "5100542"]
[WhiteElo "2104"]
[BlackElo "2439"]
[Result "0-1"]
[Round "4"]
[TimeControl "180+2"]
[Date "2023.07.25"]
[WhiteClock "0:00:11"]
[BlackClock "0:01:49"]
[Board "174"]

1. e4 {[%clk 0:03:00]}  c5 {[%clk 0:02:59]} 2. d4 {[%clk 0:02:58]}  cxd4 {[%clk 0:02:59]} 3. c3 {[%clk 0:02:58]}  Nf6 {[%clk 0:03:00]} 4. e5 {[%clk 0:02:57]}  Nd5 {[%clk 0:03:01]} 5. Nf3 {[%clk 0:02:57]}  Nc6 {[%clk 0:03:00]} 6. cxd4 {[%clk 0:02:57]}  d6 {[%clk 0:03:01]} 7. exd6 {[%clk 0:02:54]}  Qxd6 {[%clk 0:03:02]} 8. Nc3 {[%clk 0:02:54]}  Bg4 {[%clk 0:02:59]} 9. Be2 {[%clk 0:02:53]}  g6 {[%clk 0:02:58]} 10. O-O {[%clk 0:02:53]}  Bg7 {[%clk 0:02:58]} 11. h3 {[%clk 0:02:51]}  Bf5 {[%clk 0:02:56]} 12. Be3 {[%clk 0:02:51]}  O-O {[%clk 0:02:49]} 13. Qb3 {[%clk 0:02:50]}  Nb6 {[%clk 0:02:47]} 14. d5 {[%clk 0:02:38]}  Nb4 {[%clk 0:02:41]} 15. Bxb6 {[%clk 0:02:25]}  Qxb6 {[%clk 0:02:40]} 16. a3 {[%clk 0:02:24]}  Nc2 {[%clk 0:02:38]} 17. Qxb6 {[%clk 0:02:24]}  axb6 {[%clk 0:02:38]} 18. Rac1 {[%clk 0:02:22]}  Bxc3 {[%clk 0:02:32]} 19. bxc3 {[%clk 0:02:21]}  Rxa3 {[%clk 0:02:32]} 20. Nh4 {[%clk 0:02:21]}  Rxc3 {[%clk 0:02:30]} 21. Nxf5 {[%clk 0:02:20]}  gxf5 {[%clk 0:02:30]} 22. Rfd1 {[%clk 0:02:08]}  Nd4 {[%clk 0:02:29]} 23. Bd3 {[%clk 0:02:01]}  Rfc8 {[%clk 0:02:25]} 24. Rxc3 {[%clk 0:01:56]}  Rxc3 {[%clk 0:02:26]} 25. Kf1 {[%clk 0:01:49]}  b5 {[%clk 0:02:23]} 26. Bb1 {[%clk 0:01:35]}  Rc4 {[%clk 0:02:06]} 27. Ba2 {[%clk 0:01:25]}  Ra4 {[%clk 0:02:06]} 28. d6 {[%clk 0:01:15]}  exd6 {[%clk 0:02:05]} 29. Bd5 {[%clk 0:01:11]}  b6 {[%clk 0:02:01]} 30. Rb1 {[%clk 0:01:07]}  b4 {[%clk 0:02:00]} 31. Rd1 {[%clk 0:01:05]}  b3 {[%clk 0:02:00]} 32. Rb1 {[%clk 0:01:01]}  b2 {[%clk 0:02:01]} 33. Ke1 {[%clk 0:00:56]}  Ra1 {[%clk 0:02:00]} 34. Ba2 {[%clk 0:00:42]}  Rxa2 {[%clk 0:02:00]} 35. Kd2 {[%clk 0:00:42]}  Kg7 {[%clk 0:01:58]} 36. Kc3 {[%clk 0:00:42]}  Ne2+ {[%clk 0:01:58]} 37. Kd2 {[%clk 0:00:41]}  Nc1 {[%clk 0:01:58]} 38. Kc2 {[%clk 0:00:38]}  d5 {[%clk 0:01:56]} 39. Rxb2 {[%clk 0:00:38]}  Rxb2+ {[%clk 0:01:56]} 40. Kxb2 {[%clk 0:00:39]}  Nd3+ {[%clk 0:01:57]} 41. Kc3 {[%clk 0:00:38]}  Nxf2 {[%clk 0:01:58]} 42. Kd4 {[%clk 0:00:38]}  Kf6 {[%clk 0:01:53]} 43. Kxd5 {[%clk 0:00:39]}  Ne4 {[%clk 0:01:52]} 44. Kc6 {[%clk 0:00:38]}  Kg5 {[%clk 0:01:53]} 45. Kxb6 {[%clk 0:00:36]}  Kh4 {[%clk 0:01:53]} 46. Kc6 {[%clk 0:00:33]}  Kg3 {[%clk 0:01:54]} 47. Kd5 {[%clk 0:00:33]}  Kf4 {[%clk 0:01:51]} 48. h4 {[%clk 0:00:29]}  h5 {[%clk 0:01:52]} 49. Kd4 {[%clk 0:00:28]}  Kg4 {[%clk 0:01:50]} 50. Ke5 {[%clk 0:00:27]}  Ng3 {[%clk 0:01:46]} 51. Kf6 {[%clk 0:00:26]}  Kxh4 {[%clk 0:01:47]} 52. Kxf7 {[%clk 0:00:26]}  Kg4 {[%clk 0:01:48]} 53. Kg6 {[%clk 0:00:26]}  Nf1 {[%clk 0:01:48]} 54. Kf6 {[%clk 0:00:11]}  Ne3 {[%clk 0:01:49]} 0-1


[Site "https://www.chess.com"]

[Event "Titled Tuesday Blitz July 25 Late 2023"]
[White "Biliy, Vadim"]
[Black "Hamidi, Amir Mohammad"]
[WhiteFideId "14114127"]
[BlackFideId "12563285"]
[WhiteElo "2303"]
[BlackElo "2766"]
[Result "0-1"]
[Round "4"]
[TimeControl "180+2"]
[Date "2023.07.25"]
[WhiteClock "0:00:51"]
[BlackClock "0:01:15"]
[Board "176"]

1. d4 {[%clk 0:03:00]}  Nf6 {[%clk 0:02:57]} 2. Nf3 {[%clk 0:03:00]}  e6 {[%clk 0:02:55]} 3. e3 {[%clk 0:03:01]}  b6 {[%clk 0:02:51]} 4. Be2 {[%clk 0:03:01]}  Bb7 {[%clk 0:02:51]} 5. O-O {[%clk 0:03:01]}  Be7 {[%clk 0:02:50]} 6. c4 {[%clk 0:03:02]}  O-O {[%clk 0:02:47]} 7. Nc3 {[%clk 0:03:02]}  d5 {[%clk 0:02:41]} 8. b3 {[%clk 0:03:02]}  Nbd7 {[%clk 0:02:29]} 9. Bb2 {[%clk 0:03:00]}  a6 {[%clk 0:02:20]} 10. cxd5 {[%clk 0:02:54]}  exd5 {[%clk 0:02:15]} 11. Rc1 {[%clk 0:02:51]}  Bd6 {[%clk 0:02:10]} 12. g3 {[%clk 0:02:47]}  Qe7 {[%clk 0:02:09]} 13. Nh4 {[%clk 0:02:46]}  g6 {[%clk 0:02:07]} 14. Bf3 {[%clk 0:02:43]}  Rac8 {[%clk 0:02:04]} 15. Re1 {[%clk 0:02:37]}  Rfd8 {[%clk 0:02:02]} 16. Qe2 {[%clk 0:02:27]}  Nf8 {[%clk 0:01:56]} 17. Rcd1 {[%clk 0:02:22]}  Ne6 {[%clk 0:01:54]} 18. Qf1 {[%clk 0:02:21]}  Ng5 {[%clk 0:01:52]} 19. Bg2 {[%clk 0:02:15]}  Bb4 {[%clk 0:01:47]} 20. f3 {[%clk 0:02:10]}  c5 {[%clk 0:01:44]} 21. a3 {[%clk 0:02:01]}  Ba5 {[%clk 0:01:36]} 22. dxc5 {[%clk 0:01:55]}  bxc5 {[%clk 0:01:35]} 23. Re2 {[%clk 0:01:43]}  Ne6 {[%clk 0:01:34]} 24. f4 {[%clk 0:01:33]}  d4 {[%clk 0:01:28]} 25. exd4 {[%clk 0:01:22]}  cxd4 {[%clk 0:01:24]} 26. Ne4 {[%clk 0:01:09]}  Nxe4 {[%clk 0:01:21]} 27. Bxe4 {[%clk 0:01:07]}  Bxe4 {[%clk 0:01:22]} 28. Rxe4 {[%clk 0:01:07]}  Qb7 {[%clk 0:01:21]} 29. Qg2 {[%clk 0:01:01]}  Qxb3 {[%clk 0:01:19]} 30. Rd2 {[%clk 0:00:56]}  Bxd2 {[%clk 0:01:16]} 31. Qxd2 {[%clk 0:00:51]}  Rc2 {[%clk 0:01:15]} 0-1


[Site "https://www.chess.com"]

[Event "Titled Tuesday Blitz July 25 Late 2023"]
[White "Rottenwohrer Suarez, Juan"]
[Black "Vafin, Ayrat"]
[WhiteFideId "32068182"]
[BlackFideId "4146530"]
[WhiteElo "2510"]
[BlackElo "2259"]
[Result "1-0"]
[Round "4"]
[TimeControl "180+2"]
[Date "2023.07.25"]
[WhiteClock "0:00:42"]
[BlackClock "0:02:28"]
[Board "180"]

1. e4 {[%clk 0:02:39]}  c6 {[%clk 0:02:58]} 2. d4 {[%clk 0:02:36]}  d5 {[%clk 0:02:58]} 3. Nc3 {[%clk 0:02:35]}  dxe4 {[%clk 0:02:58]} 4. Nxe4 {[%clk 0:02:35]}  Bf5 {[%clk 0:02:59]} 5. Ng3 {[%clk 0:02:28]}  Bg6 {[%clk 0:03:00]} 6. Nf3 {[%clk 0:02:24]}  Nd7 {[%clk 0:02:59]} 7. h4 {[%clk 0:02:23]}  h6 {[%clk 0:02:59]} 8. h5 {[%clk 0:02:19]}  Bh7 {[%clk 0:03:00]} 9. Bd3 {[%clk 0:02:19]}  Bxd3 {[%clk 0:03:00]} 10. Qxd3 {[%clk 0:02:18]}  e6 {[%clk 0:03:01]} 11. Bd2 {[%clk 0:02:18]}  Ngf6 {[%clk 0:03:01]} 12. O-O-O {[%clk 0:02:17]}  Be7 {[%clk 0:03:02]} 13. Ne4 {[%clk 0:02:09]}  Nxe4 {[%clk 0:03:02]} 14. Qxe4 {[%clk 0:02:08]}  Nf6 {[%clk 0:03:02]} 15. Qe2 {[%clk 0:02:04]}  O-O {[%clk 0:03:03]} 16. g4 {[%clk 0:00:57]}  Nxg4 {[%clk 0:02:45]} 17. Rdg1 {[%clk 0:00:56]}  Nf6 {[%clk 0:02:45]} 18. Bxh6 {[%clk 0:00:54]}  Kh8 {[%clk 0:02:42]} 19. Bxg7+ {[%clk 0:00:53]}  Kh7 {[%clk 0:02:39]} 20. Qd3+ {[%clk 0:00:49]}  Kg8 {[%clk 0:02:28]} 21. Bxf6# {[%clk 0:00:42]} 1-0


[Site "https://www.chess.com"]

[Event "Titled Tuesday Blitz July 25 Late 2023"]
[White "Bazzano, Sebastian"]
[Black "Estrada Nieto, Julian"]
[WhiteFideId "104566"]
[BlackFideId "5101018"]
[WhiteElo "2202"]
[BlackElo "2478"]
[Result "1-0"]
[Round "4"]
[TimeControl "180+2"]
[Date "2023.07.25"]
[WhiteClock "0:00:14"]
[BlackClock "0:00:49"]
[Board "181"]

1. d4 {[%clk 0:03:00]}  Nf6 {[%clk 0:02:57]} 2. Bf4 {[%clk 0:02:59]}  d5 {[%clk 0:02:57]} 3. e3 {[%clk 0:02:59]}  c5 {[%clk 0:02:57]} 4. c3 {[%clk 0:02:59]}  Nc6 {[%clk 0:02:57]} 5. Nd2 {[%clk 0:02:58]}  cxd4 {[%clk 0:02:55]} 6. exd4 {[%clk 0:02:58]}  Qb6 {[%clk 0:02:52]} 7. Qb3 {[%clk 0:02:57]}  Qxb3 {[%clk 0:02:48]} 8. axb3 {[%clk 0:02:55]}  Bf5 {[%clk 0:02:47]} 9. Ngf3 {[%clk 0:02:54]}  a6 {[%clk 0:02:47]} 10. b4 {[%clk 0:02:52]}  Rc8 {[%clk 0:02:47]} 11. Nb3 {[%clk 0:02:41]}  e6 {[%clk 0:02:46]} 12. Nc5 {[%clk 0:02:28]}  Bxc5 {[%clk 0:02:45]} 13. bxc5 {[%clk 0:02:29]}  h6 {[%clk 0:02:36]} 14. Ne5 {[%clk 0:02:16]}  Ne4 {[%clk 0:02:25]} 15. f3 {[%clk 0:02:05]}  Nf6 {[%clk 0:02:24]} 16. Kd2 {[%clk 0:01:52]}  Nd7 {[%clk 0:02:24]} 17. Nxc6 {[%clk 0:01:39]}  Rxc6 {[%clk 0:02:23]} 18. b4 {[%clk 0:01:40]}  Rc8 {[%clk 0:02:09]} 19. b5 {[%clk 0:01:34]}  axb5 {[%clk 0:02:09]} 20. Bxb5 {[%clk 0:01:34]}  f6 {[%clk 0:02:05]} 21. Ra7 {[%clk 0:01:18]}  e5 {[%clk 0:02:05]} 22. dxe5 {[%clk 0:01:13]}  fxe5 {[%clk 0:02:05]} 23. Bxe5 {[%clk 0:01:08]}  O-O {[%clk 0:02:05]} 24. Bxd7 {[%clk 0:00:59]}  Bxd7 {[%clk 0:02:05]} 25. Rxb7 {[%clk 0:01:00]}  Rf7 {[%clk 0:01:57]} 26. Bd4 {[%clk 0:00:55]}  Ra8 {[%clk 0:01:55]} 27. Rhb1 {[%clk 0:00:48]}  Ra2+ {[%clk 0:01:49]} 28. R1b2 {[%clk 0:00:48]}  Ra1 {[%clk 0:01:43]} 29. Rc7 {[%clk 0:00:24]}  Ba4 {[%clk 0:01:17]} 30. Rxf7 {[%clk 0:00:24]}  Kxf7 {[%clk 0:01:17]} 31. Rb7+ {[%clk 0:00:25]}  Ke6 {[%clk 0:01:17]} 32. Rxg7 {[%clk 0:00:22]}  Ra2+ {[%clk 0:01:14]} 33. Ke3 {[%clk 0:00:21]}  Bb5 {[%clk 0:01:09]} 34. h4 {[%clk 0:00:18]}  Kf5 {[%clk 0:01:03]} 35. g4+ {[%clk 0:00:17]}  Ke6 {[%clk 0:01:03]} 36. Rg6+ {[%clk 0:00:17]}  Kf7 {[%clk 0:01:02]} 37. Rxh6 {[%clk 0:00:17]}  Re2+ {[%clk 0:00:59]} 38. Kf4 {[%clk 0:00:17]}  Bd3 {[%clk 0:00:59]} 39. Rd6 {[%clk 0:00:14]}  Ke7 {[%clk 0:00:56]} 40. Rxd5 {[%clk 0:00:13]}  Bc4 {[%clk 0:00:55]} 41. Re5+ {[%clk 0:00:13]}  Kf7 {[%clk 0:00:51]} 42. Rxe2 {[%clk 0:00:12]}  Bxe2 {[%clk 0:00:52]} 43. h5 {[%clk 0:00:11]}  Ba6 {[%clk 0:00:53]} 44. g5 {[%clk 0:00:11]}  Kg8 {[%clk 0:00:53]} 45. Ke5 {[%clk 0:00:11]}  Bc8 {[%clk 0:00:53]} 46. f4 {[%clk 0:00:11]}  Kh7 {[%clk 0:00:54]} 47. f5 {[%clk 0:00:11]}  Bd7 {[%clk 0:00:52]} 48. Kd6 {[%clk 0:00:10]}  Bxf5 {[%clk 0:00:52]} 49. c6 {[%clk 0:00:10]}  Bg4 {[%clk 0:00:53]} 50. h6 {[%clk 0:00:09]}  Kg6 {[%clk 0:00:52]} 51. Be3 {[%clk 0:00:08]}  Bc8 {[%clk 0:00:49]} 52. Kc7 {[%clk 0:00:08]}  Bf5 {[%clk 0:00:49]} 53. Kd8 {[%clk 0:00:08]}  Kh7 {[%clk 0:00:47]} 54. c7 {[%clk 0:00:08]}  Kg6 {[%clk 0:00:48]} 55. c8=Q {[%clk 0:00:08]}  Bxc8 {[%clk 0:00:49]} 56. Kxc8 {[%clk 0:00:08]}  Kh7 {[%clk 0:00:49]} 57. Kd7 {[%clk 0:00:09]}  Kg6 {[%clk 0:00:49]} 58. c4 {[%clk 0:00:10]}  Kh7 {[%clk 0:00:49]} 59. c5 {[%clk 0:00:11]}  Kg6 {[%clk 0:00:50]} 60. c6 {[%clk 0:00:12]}  Kh7 {[%clk 0:00:51]} 61. c7 {[%clk 0:00:13]}  Kg6 {[%clk 0:00:50]} 62. c8=Q {[%clk 0:00:14]}  Kh5 {[%clk 0:00:51]} 63. Qe8+ {[%clk 0:00:14]}  Kg4 {[%clk 0:00:51]} 64. g6 {[%clk 0:00:14]}  Kf3 {[%clk 0:00:51]} 65. Bc1 {[%clk 0:00:14]}  Kg2 {[%clk 0:00:50]} 66. Qe3 {[%clk 0:00:14]}  Kh1 {[%clk 0:00:50]} 67. g7 {[%clk 0:00:14]}  Kh2 {[%clk 0:00:49]} 68. h7 {[%clk 0:00:15]}  Kg2 {[%clk 0:00:48]} 69. g8=Q+ {[%clk 0:00:14]}  Kf1 {[%clk 0:00:49]} 70. Qgg1# {[%clk 0:00:14]} 1-0


[Site "https://www.chess.com"]

[Event "Titled Tuesday Blitz July 25 Late 2023"]
[White "ZugZwang1201"]
[Black "Quirke, Jeffrey"]
[BlackFideId "2013029"]
[WhiteElo "2471"]
[BlackElo "2189"]
[Result "1-0"]
[Round "4"]
[TimeControl "180+2"]
[Date "2023.07.25"]
[WhiteClock "0:00:18"]
[BlackClock "0:00:00"]
[Board "182"]

1. e4 {[%clk 0:03:00]}  e6 {[%clk 0:02:58]} 2. d3 {[%clk 0:03:00]}  d5 {[%clk 0:02:56]} 3. Qe2 {[%clk 0:03:01]}  Be7 {[%clk 0:02:47]} 4. f4 {[%clk 0:03:01]}  Nf6 {[%clk 0:02:45]} 5. e5 {[%clk 0:03:00]}  Nfd7 {[%clk 0:02:45]} 6. Nf3 {[%clk 0:03:01]}  c5 {[%clk 0:02:46]} 7. c4 {[%clk 0:03:01]}  Nc6 {[%clk 0:02:44]} 8. Nc3 {[%clk 0:03:01]}  Nb6 {[%clk 0:02:38]} 9. b3 {[%clk 0:03:01]}  O-O {[%clk 0:02:34]} 10. Bb2 {[%clk 0:03:01]}  f6 {[%clk 0:02:34]} 11. g3 {[%clk 0:02:59]}  fxe5 {[%clk 0:02:32]} 12. Nxe5 {[%clk 0:03:00]}  Nxe5 {[%clk 0:02:31]} 13. Qxe5 {[%clk 0:03:01]}  Bf6 {[%clk 0:02:29]} 14. Qe2 {[%clk 0:03:01]}  Bd7 {[%clk 0:02:14]} 15. Bg2 {[%clk 0:03:01]}  Re8 {[%clk 0:01:50]} 16. O-O {[%clk 0:02:57]}  Bc6 {[%clk 0:01:48]} 17. Rae1 {[%clk 0:02:55]}  Qd7 {[%clk 0:01:40]} 18. Bh3 {[%clk 0:02:47]}  dxc4 {[%clk 0:01:38]} 19. dxc4 {[%clk 0:02:34]}  Qd4+ {[%clk 0:01:36]} 20. Rf2 {[%clk 0:02:30]}  e5 {[%clk 0:01:13]} 21. Nd1 {[%clk 0:02:28]}  exf4 {[%clk 0:01:07]} 22. Bxd4 {[%clk 0:02:21]}  Rxe2 {[%clk 0:01:04]} 23. Rfxe2 {[%clk 0:02:22]}  Bxd4+ {[%clk 0:01:04]} 24. Kf1 {[%clk 0:02:22]}  f3 {[%clk 0:00:57]} 25. Re7 {[%clk 0:02:14]}  a5 {[%clk 0:00:42]} 26. a4 {[%clk 0:02:12]}  Rd8 {[%clk 0:00:39]} 27. Nf2 {[%clk 0:02:05]}  h6 {[%clk 0:00:35]} 28. Be6+ {[%clk 0:01:58]}  Kh8 {[%clk 0:00:33]} 29. Bf5 {[%clk 0:01:57]}  Nc8 {[%clk 0:00:23]} 30. Rc7 {[%clk 0:01:30]}  Nd6 {[%clk 0:00:22]} 31. Bg6 {[%clk 0:01:20]}  Rf8 {[%clk 0:00:17]} 32. Re6 {[%clk 0:01:16]}  Nf5 {[%clk 0:00:16]} 33. Ng4 {[%clk 0:00:39]}  h5 {[%clk 0:00:10]} 34. Bxh5 {[%clk 0:00:36]}  f2 {[%clk 0:00:05]} 35. Rf7 {[%clk 0:00:22]}  Rxf7 {[%clk 0:00:04]} 36. Bxf7 {[%clk 0:00:23]}  Bf3 {[%clk 0:00:00]} 37. Bg6 {[%clk 0:00:18]} 1-0


[Site "https://www.chess.com"]

[Event "Titled Tuesday Blitz July 25 Late 2023"]
[White "ExchangeAB"]
[Black "Winslow, Elliott"]
[BlackFideId "2002523"]
[WhiteElo "2440"]
[BlackElo "2168"]
[Result "1-0"]
[Round "4"]
[TimeControl "180+2"]
[Date "2023.07.25"]
[WhiteClock "0:00:27"]
[BlackClock "0:00:05"]
[Board "183"]

1. d4 {[%clk 0:03:00]}  Nf6 {[%clk 0:02:55]} 2. Nc3 {[%clk 0:03:01]}  g6 {[%clk 0:02:53]} 3. e4 {[%clk 0:03:00]}  d6 {[%clk 0:02:53]} 4. Be2 {[%clk 0:03:00]}  Bg7 {[%clk 0:02:51]} 5. h4 {[%clk 0:03:00]}  h5 {[%clk 0:02:51]} 6. Nf3 {[%clk 0:03:00]}  c6 {[%clk 0:02:47]} 7. Bg5 {[%clk 0:03:00]}  Qb6 {[%clk 0:02:43]} 8. Rb1 {[%clk 0:02:48]}  Bg4 {[%clk 0:02:25]} 9. Qd2 {[%clk 0:02:46]}  Nbd7 {[%clk 0:02:23]} 10. Qe3 {[%clk 0:02:41]}  e5 {[%clk 0:02:19]} 11. dxe5 {[%clk 0:02:40]}  dxe5 {[%clk 0:02:14]} 12. Qxb6 {[%clk 0:02:36]}  axb6 {[%clk 0:02:14]} 13. Nd2 {[%clk 0:02:33]}  b5 {[%clk 0:02:06]} 14. Bxg4 {[%clk 0:02:30]}  hxg4 {[%clk 0:02:05]} 15. a3 {[%clk 0:02:28]}  Nh5 {[%clk 0:01:55]} 16. g3 {[%clk 0:02:26]}  Bh6 {[%clk 0:01:49]} 17. Bxh6 {[%clk 0:02:26]}  Rxh6 {[%clk 0:01:49]} 18. Nf1 {[%clk 0:02:26]}  f5 {[%clk 0:01:44]} 19. Ne3 {[%clk 0:02:25]}  Ng7 {[%clk 0:01:44]} 20. Ke2 {[%clk 0:02:23]}  Ke7 {[%clk 0:01:42]} 21. Rhd1 {[%clk 0:02:23]}  Nf6 {[%clk 0:01:42]} 22. Rd2 {[%clk 0:02:06]}  Rhh8 {[%clk 0:01:40]} 23. Rbd1 {[%clk 0:02:04]}  f4 {[%clk 0:01:29]} 24. Nf1 {[%clk 0:01:49]}  Rhd8 {[%clk 0:01:25]} 25. Rxd8 {[%clk 0:01:48]}  Rxd8 {[%clk 0:01:24]} 26. Rxd8 {[%clk 0:01:48]}  Kxd8 {[%clk 0:01:25]} 27. f3 {[%clk 0:01:44]}  Ne6 {[%clk 0:01:19]} 28. fxg4 {[%clk 0:01:40]}  Nxg4 {[%clk 0:01:16]} 29. Kf3 {[%clk 0:01:39]}  Nf6 {[%clk 0:01:14]} 30. gxf4 {[%clk 0:01:38]}  Nxf4 {[%clk 0:01:09]} 31. Ng3 {[%clk 0:01:30]}  Ke7 {[%clk 0:01:09]} 32. Nd1 {[%clk 0:01:27]}  N4h5 {[%clk 0:01:03]} 33. Nxh5 {[%clk 0:01:24]}  gxh5 {[%clk 0:01:00]} 34. Ne3 {[%clk 0:01:22]}  Ke6 {[%clk 0:00:57]} 35. Nf5 {[%clk 0:01:22]}  c5 {[%clk 0:00:55]} 36. b3 {[%clk 0:01:19]}  c4 {[%clk 0:00:48]} 37. Ng3 {[%clk 0:01:18]}  Kd6 {[%clk 0:00:43]} 38. Ke3 {[%clk 0:01:18]}  Kc5 {[%clk 0:00:41]} 39. b4+ {[%clk 0:01:00]}  Kd6 {[%clk 0:00:37]} 40. Kd2 {[%clk 0:00:59]}  Ke6 {[%clk 0:00:34]} 41. Kc3 {[%clk 0:00:57]}  Kd6 {[%clk 0:00:31]} 42. a4 {[%clk 0:00:55]}  bxa4 {[%clk 0:00:28]} 43. Kxc4 {[%clk 0:00:56]}  b5+ {[%clk 0:00:27]} 44. Kc3 {[%clk 0:00:39]}  Ke6 {[%clk 0:00:27]} 45. Kb2 {[%clk 0:00:38]}  Ng4 {[%clk 0:00:24]} 46. Nxh5 {[%clk 0:00:36]}  Ne3 {[%clk 0:00:24]} 47. Ng3 {[%clk 0:00:33]}  Nc4+ {[%clk 0:00:19]} 48. Ka2 {[%clk 0:00:32]}  Ne3 {[%clk 0:00:19]} 49. c3 {[%clk 0:00:31]}  Ng2 {[%clk 0:00:18]} 50. h5 {[%clk 0:00:30]}  Nf4 {[%clk 0:00:18]} 51. Ka3 {[%clk 0:00:28]}  Kf6 {[%clk 0:00:18]} 52. c4 {[%clk 0:00:28]}  bxc4 {[%clk 0:00:17]} 53. Kxa4 {[%clk 0:00:29]}  Kg5 {[%clk 0:00:13]} 54. b5 {[%clk 0:00:29]}  Ne6 {[%clk 0:00:12]} 55. Kb4 {[%clk 0:00:28]}  Nd4 {[%clk 0:00:05]} 56. Kxc4 {[%clk 0:00:27]} 1-0


[Site "https://www.chess.com"]

[Event "Titled Tuesday Blitz July 25 Late 2023"]
[White "Silvestre, Christian"]
[Black "Der_Balak_3Halak"]
[WhiteFideId "30956269"]
[WhiteElo "2112"]
[BlackElo "2395"]
[Result "0-1"]
[Round "4"]
[TimeControl "180+2"]
[Date "2023.07.25"]
[WhiteClock "0:00:42"]
[BlackClock "0:00:17"]
[Board "187"]

1. e3 {[%clk 0:03:00]}  b6 {[%clk 0:02:53]} 2. c4 {[%clk 0:03:01]}  Bb7 {[%clk 0:02:54]} 3. b3 {[%clk 0:02:59]}  g6 {[%clk 0:02:55]} 4. Bb2 {[%clk 0:02:59]}  Nf6 {[%clk 0:02:55]} 5. f4 {[%clk 0:02:59]}  Bg7 {[%clk 0:02:54]} 6. Nf3 {[%clk 0:03:00]}  O-O {[%clk 0:02:55]} 7. Be2 {[%clk 0:03:00]}  e6 {[%clk 0:02:55]} 8. O-O {[%clk 0:03:00]}  d5 {[%clk 0:02:56]} 9. d3 {[%clk 0:02:58]}  c5 {[%clk 0:02:55]} 10. Qc1 {[%clk 0:02:53]}  Nbd7 {[%clk 0:02:53]} 11. h3 {[%clk 0:02:51]}  Nh5 {[%clk 0:02:42]} 12. Bxg7 {[%clk 0:02:49]}  Kxg7 {[%clk 0:02:23]} 13. Kh2 {[%clk 0:02:43]}  Qe7 {[%clk 0:02:05]} 14. Qc3+ {[%clk 0:02:39]}  Kg8 {[%clk 0:02:01]} 15. g4 {[%clk 0:02:35]}  Ng7 {[%clk 0:01:59]} 16. Nbd2 {[%clk 0:02:32]}  Rad8 {[%clk 0:01:57]} 17. a3 {[%clk 0:02:31]}  h5 {[%clk 0:01:56]} 18. b4 {[%clk 0:02:29]}  Qd6 {[%clk 0:01:51]} 19. Kg1 {[%clk 0:02:14]}  hxg4 {[%clk 0:01:49]} 20. hxg4 {[%clk 0:02:13]}  d4 {[%clk 0:01:46]} 21. exd4 {[%clk 0:02:10]}  Qxf4 {[%clk 0:01:44]} 22. Rf2 {[%clk 0:02:01]}  Qxg4+ {[%clk 0:01:33]} 23. Rg2 {[%clk 0:02:00]}  Qf4 {[%clk 0:01:28]} 24. dxc5 {[%clk 0:01:57]}  bxc5 {[%clk 0:01:21]} 25. Rf1 {[%clk 0:01:56]}  Nf5 {[%clk 0:01:13]} 26. Rff2 {[%clk 0:01:30]}  Ne3 {[%clk 0:01:00]} 27. Rh2 {[%clk 0:01:23]}  e5 {[%clk 0:00:51]} 28. Ne4 {[%clk 0:01:12]}  Bxe4 {[%clk 0:00:38]} 29. dxe4 {[%clk 0:01:13]}  Ng4 {[%clk 0:00:37]} 30. Nxe5 {[%clk 0:00:51]}  Qxe5 {[%clk 0:00:21]} 31. Qh3 {[%clk 0:00:49]}  Nxh2 {[%clk 0:00:17]} 32. Rxh2 {[%clk 0:00:50]}  Qa1+ {[%clk 0:00:17]} 33. Kg2 {[%clk 0:00:42]}  Qg7 {[%clk 0:00:17]} 0-1


[Site "https://www.chess.com"]

[Event "Titled Tuesday Blitz July 25 Late 2023"]
[White "Hartikainen, Jarmo"]
[Black "Bazilius, Augustinas"]
[WhiteFideId "503134"]
[BlackFideId "12832251"]
[WhiteElo "2073"]
[BlackElo "2388"]
[Result "1/2-1/2"]
[Round "4"]
[TimeControl "180+2"]
[Date "2023.07.25"]
[WhiteClock "0:00:06"]
[BlackClock "0:00:05"]
[Board "188"]

1. e4 {[%clk 0:03:00]}  d6 {[%clk 0:02:58]} 2. d4 {[%clk 0:03:00]}  Nf6 {[%clk 0:02:59]} 3. Nc3 {[%clk 0:03:00]}  g6 {[%clk 0:02:59]} 4. Be2 {[%clk 0:02:58]}  Bg7 {[%clk 0:02:58]} 5. Be3 {[%clk 0:02:58]}  O-O {[%clk 0:02:55]} 6. g4 {[%clk 0:02:58]}  a6 {[%clk 0:02:38]} 7. h4 {[%clk 0:02:57]}  b5 {[%clk 0:02:33]} 8. a3 {[%clk 0:02:56]}  Bb7 {[%clk 0:02:29]} 9. Bf3 {[%clk 0:02:53]}  Nfd7 {[%clk 0:02:03]} 10. h5 {[%clk 0:02:50]}  c5 {[%clk 0:01:59]} 11. Qd2 {[%clk 0:02:34]}  cxd4 {[%clk 0:01:43]} 12. Bxd4 {[%clk 0:02:34]}  Ne5 {[%clk 0:01:44]} 13. O-O-O {[%clk 0:02:09]}  Nbc6 {[%clk 0:01:36]} 14. Bxe5 {[%clk 0:01:41]}  Nxe5 {[%clk 0:01:35]} 15. Be2 {[%clk 0:01:35]}  Qb6 {[%clk 0:01:10]} 16. f4 {[%clk 0:01:32]}  Nc4 {[%clk 0:01:04]} 17. Bxc4 {[%clk 0:01:30]}  bxc4 {[%clk 0:01:05]} 18. Nge2 {[%clk 0:01:27]}  Bxe4 {[%clk 0:00:59]} 19. Rh3 {[%clk 0:01:13]}  Rab8 {[%clk 0:00:50]} 20. b4 {[%clk 0:00:43]}  Bc6 {[%clk 0:00:18]} 21. hxg6 {[%clk 0:00:29]}  hxg6 {[%clk 0:00:13]} 22. Nd5 {[%clk 0:00:27]}  Bxd5 {[%clk 0:00:10]} 23. Qxd5 {[%clk 0:00:27]}  a5 {[%clk 0:00:02]} 24. c3 {[%clk 0:00:27]}  axb4 {[%clk 0:00:02]} 25. cxb4 {[%clk 0:00:26]}  Qf2 {[%clk 0:00:03]} 26. Qf3 {[%clk 0:00:19]}  Qxf3 {[%clk 0:00:03]} 27. Rxf3 {[%clk 0:00:20]}  Rfc8 {[%clk 0:00:03]} 28. Nc3 {[%clk 0:00:19]}  Ra8 {[%clk 0:00:02]} 29. Nd5 {[%clk 0:00:18]}  e5 {[%clk 0:00:01]} 30. Ne7+ {[%clk 0:00:18]}  Kf8 {[%clk 0:00:01]} 31. Nxc8 {[%clk 0:00:18]}  Rxc8 {[%clk 0:00:02]} 32. fxe5 {[%clk 0:00:18]}  Bxe5 {[%clk 0:00:03]} 33. Kc2 {[%clk 0:00:16]}  c3 {[%clk 0:00:03]} 34. Rd5 {[%clk 0:00:16]}  Ra8 {[%clk 0:00:03]} 35. Kb3 {[%clk 0:00:16]}  Rc8 {[%clk 0:00:02]} 36. Rf2 {[%clk 0:00:15]}  Ke7 {[%clk 0:00:01]} 37. Rc2 {[%clk 0:00:15]}  Ke6 {[%clk 0:00:01]} 38. Rd3 {[%clk 0:00:15]}  f5 {[%clk 0:00:01]} 39. gxf5+ {[%clk 0:00:15]}  gxf5 {[%clk 0:00:02]} 40. a4 {[%clk 0:00:15]}  f4 {[%clk 0:00:02]} 41. b5 {[%clk 0:00:16]}  Kf5 {[%clk 0:00:03]} 42. a5 {[%clk 0:00:16]}  Ke4 {[%clk 0:00:03]} 43. Rd1 {[%clk 0:00:15]}  f3 {[%clk 0:00:03]} 44. b6 {[%clk 0:00:14]}  Ke3 {[%clk 0:00:03]} 45. a6 {[%clk 0:00:13]}  Rc6 {[%clk 0:00:02]} 46. a7 {[%clk 0:00:11]}  Rxb6+ {[%clk 0:00:03]} 47. Kc4 {[%clk 0:00:12]}  Ra6 {[%clk 0:00:03]} 48. Kd5 {[%clk 0:00:11]}  Rxa7 {[%clk 0:00:03]} 49. Re1+ {[%clk 0:00:10]}  Kf4 {[%clk 0:00:03]} 50. Rf1 {[%clk 0:00:10]}  Ra5+ {[%clk 0:00:03]} 51. Kc4 {[%clk 0:00:09]}  Ra6 {[%clk 0:00:03]} 52. Rcf2 {[%clk 0:00:09]}  Rc6+ {[%clk 0:00:02]} 53. Kd3 {[%clk 0:00:08]}  c2 {[%clk 0:00:01]} 54. Rxf3+ {[%clk 0:00:09]}  Kg5 {[%clk 0:00:01]} 55. Rc1 {[%clk 0:00:08]}  Bf4 {[%clk 0:00:01]} 56. Rxc2 {[%clk 0:00:08]}  Rxc2 {[%clk 0:00:01]} 57. Kxc2 {[%clk 0:00:09]}  Kg4 {[%clk 0:00:02]} 58. Rd3 {[%clk 0:00:08]}  Kf5 {[%clk 0:00:03]} 59. Rxd6 {[%clk 0:00:07]}  Be5 {[%clk 0:00:03]} 60. Rd5 {[%clk 0:00:06]}  Ke4 {[%clk 0:00:04]} 61. Rxe5+ {[%clk 0:00:06]}  Kxe5 {[%clk 0:00:05]} 1/2-1/2


[Site "https://www.chess.com"]